Cogmind - Beta 15 @@@ ROGUE MODE // 2025.07.25 @ 05:12:36 Player: Sunsh1n3 Result: Destroyed by Y-54 Guardian with Gatling Laser Performance ------------- Evolutions (4) 2000 Regions Visited (5) 1000 Robots Destroyed (29) 145 Value Destroyed (1267) 1267 Prototype IDs (0) 0 Alien Tech Used (0) 0 Bonus (300) 300 TOTAL SCORE: 4712 Bonus ------- Registered with UFD 300 Cogmind --------- Core Integrity 0/850 Matter 148/300 Energy 82/100 System Corruption 3% Temperature Cool (18) Movement Rolling (100) Location -6/Extension Parts ------- > --- POWER (2) -------- (None) > --- PROPULSION (4) --- Armored Huge Wheel > --- UTILITY (7) ------ Large Storage Unit Improved Terrain Scan Processor Hacking Suite > --- WEAPON (2) ------- Ripper > --- INVENTORY (15) --- Light Ion Engine Cooled Cesium-ion Thruster Advanced Melee Analysis Suite Kinecellerator Advanced ECM Suite Improved Light Armor Plating Layered Medium Armor Plating System Guard Heavy Laser Plasma Rifle Heavy Machine Gun Grenade Launcher Peak State ------------ > --- POWER ------------ Light Angular Momentum Engine Light Fission Core > --- PROPULSION ------- Carbon-fiber Leg Carbon-fiber Leg Armored Leg Improved VSS Leg > --- UTILITY ---------- Power Amplifier Improved Cooling System Large Storage Unit Advanced Terrain Scanner Improved Terrain Scan Processor Hacking Suite Improved System Shield > --- WEAPON ----------- Plasma Rifle Plasma Rifle > --- INVENTORY -------- Light Ion Engine Armored Huge Wheel Armored Huge Wheel Cooled Cesium-ion Thruster Advanced Melee Analysis Suite Advanced ECM Suite Phase Shifter Improved Heavy Armor Plating System Guard Heavy Laser Grenade Launcher Katana [Rating: 68] Favorites ----------- Power Light Fission Core Engine Light Deuterium Engine Power Core Light Fission Core Propulsion Light Treads Treads Light Treads Leg Carbon-fiber Leg Wheel Armored Huge Wheel Utility Large Storage Unit Device Terrain Scanner Storage Large Storage Unit Processor Improved Terrain Scan Processor Hackware Hacking Suite Protection Improved Light Armor Plating Weapon Plasma Rifle Energy Gun Plasma Rifle Ballistic Gun Light Assault Rifle Slashing Weapon Katana Build | -11 -10 -10 -8 -6 -6 ------- Run | Yrd Mat Sub Scr Fac Ext Slots Evolved 8 | . . . . 8 . Power 1 | . . . . 1 . Propulsion 2 | . . . . 2 . Utility 5 | . . . . 5 . Weapon . | . . . . . . Parts Attached 63 | 6 4 . 2 44 7 Power 11 | 1 2 . 1 7 . Engine 6 | 1 1 . 1 3 . Core 5 | . 1 . . 4 . Reactor . | . . . . . . Propulsion 14 | 2 . . . 11 1 Treads 2 | 2 . . . . . Leg 9 | . . . . 9 . Wheel 3 | . . . . 2 1 Hover . | . . . . . . Flight . | . . . . . . Utility 21 | 1 2 . 1 16 1 Device 11 | . . . 1 9 1 Storage 3 | 1 2 . . . . Processor 3 | . . . . 3 . Hackware 2 | . . . . 2 . Protection 2 | . . . . 2 . Artifact . | . . . . . . Weapon 17 | 2 . . . 10 5 Energy Gun 8 | . . . . 7 1 Energy Cannon . | . . . . . . Ballistic Gun 4 | 2 . . . 2 . Ballistic Cannon . | . . . . . . Launcher . | . . . . . . Special Weapon . | . . . . . . Impact Weapon . | . . . . . . Slashing Weapon 5 | . . . . 1 4 Piercing Weapon . | . . . . . . Special Melee Weapon . | . . . . . . Unidentified Prototypes . | . . . . . . Parts Lost 35 | . 1 . . 20 14 Power 7 | . 1 . . 4 2 Propulsion 9 | . . . . 5 4 Utility 11 | . . . . 7 4 Weapon 8 | . . . . 4 4 Highest Loss Streak 13 | . 1 . . 13 11 To Critical Strikes . | . . . . . . Average Backups 12 | 1 8 15 14 11 13 Power 1 | . 1 2 2 1 1 Propulsion 4 | 1 3 5 5 3 1 Utility 3 | . 2 5 3 3 6 Weapon 3 | . 1 3 4 2 4 Tool/Special . | . . . . . . Unused Backups 13 | . . . 1 4 8 Power . | . . . . . . Propulsion 3 | . . . . 2 1 Utility 6 | . . . . 1 5 Weapon 4 | . . . 1 1 2 Tool/Special . | . . . . . . Average Slot Usage (%) 78 | . 82 85 71 81 91 Engine 3 | . 10 . 2 4 . Core 8 | . . 14 11 6 11 Treads 12 | . 28 28 28 . . Leg 7 | . . . . 12 22 Wheel 2 | . . . . 5 . Device 13 | . . . 13 15 17 Storage 9 | . 14 14 14 6 6 Processor 4 | . . . . 7 6 Hackware 3 | . . . . 6 12 Protection 1 | . . . . 2 . Energy Gun 4 | . . . . 9 . Ballistic Gun 3 | . 28 28 . . 9 Peak Build Rating 68 | 6 9 9 10 68 64 Average Rating 31 | 4 6 9 8 51 58 On Entrance 16 | . 6 9 9 9 63 Naked Turns . | . . . . . . Heaviest Build 54 | 10 27 27 27 54 47 Greatest Support 61 | 40 40 40 40 61 61 Greatest Overweight (x) 8 | 3 . . . 8 1 Average Overweight (x) . | . . . . . . Largest Inventory Capacity 15 | 8 15 15 15 15 15 Average Capacity 14 | 7 12 15 15 15 15 Most Carried 15 | 4 15 15 15 15 15 Average Carried 13 | 2 8 15 14 12 14 Final Capacity 15 | 8 15 15 15 15 15 Final Carried 15 | 4 15 15 15 14 12 Class Distribution -------------------- 71% | Mutant 20% | Hacker-Mutant 7% | Scavenger-Mutant Dominant Class ---------------- Mutant | -10/Materials Mutant | -10/Subcaves Mutant | -8/Scraptown Mutant | -6/Factory Hacker-Mutant | -6/Extension Resources | -11 -10 -10 -8 -6 -6 ----------- Run | Yrd Mat Sub Scr Fac Ext Matter Collected 938 | 70 94 . 88 605 81 Remotely . | . . . . . . Salvage Created 1362 | . 162 . . 971 229 Parts 52 | . 10 . . 28 14 Haulers Intercepted . | . . . . . . Recyclers Shooed 2 | . 1 . . 1 . Parts Field Recycled . | . . . . . . Retrieved Matter . | . . . . . . Parts Self-Destructed . | . . . . . . Prevented . | . . . . . . Kills | -11 -10 -10 -8 -6 -6 ------- Run | Yrd Mat Sub Scr Fac Ext Combat Hostiles Destroyed 27 | . 4 . . 18 5 Melee 3 | . . . . 2 1 Guns 21 | . 4 . . 13 4 Classes Destroyed 6 | . 2 . . 3 1 Worker 1 | . 1 . . . . Operator 1 | . . . . . 1 Swarmer 6 | . . . . 3 3 Grunt 16 | . 4 . . 12 . Sentry 3 | . . . . 1 2 Programmer 2 | . . . . 2 . Best Kill Streak 3 | . 3 . . 3 3 Combat Bots Only 3 | . 2 . . 3 3 Max Kills in Single Turn 1 | . 1 . . 1 1 Gunslinging . | . . . . . . Exploded . | . . . . . . Melee 1 | . . . . 1 1 Uniques/NPCs Destroyed . | . . . . . . Combat | -11 -10 -10 -8 -6 -6 -------- Run | Yrd Mat Sub Scr Fac Ext Hostile Shots Fired 504 | . 35 . . 255 214 Missed 163 | . 7 . . 77 79 Hits 341 | . 28 . . 178 135 Projectile 341 | . 28 . . 178 135 Critical Strikes 5 | . . . . 5 . Damage Taken 4579 | . 376 . . 3029 1174 Core 957 | . 99 . . 647 211 Absorbed by Shields . | . . . . . . Core Remaining (%) 80 | 100 . . 60 . . Volleys Fired 106 | . 18 . . 73 15 Largest 2 | . 2 . . 2 2 Hottest 155 | . 40 . . 155 53 Shots Fired 194 | . 36 . . 129 29 Gun 194 | . 36 . . 129 29 Cannon . | . . . . . . Launcher . | . . . . . . Special . | . . . . . . Kinetic 69 | . 36 . . 4 29 Thermal 125 | . . . . 125 . Explosive . | . . . . . . Electromagnetic . | . . . . . . Robot Hit Streak 15 | . 7 . . 15 4 Robot Miss Streak 3 | . 2 . . 3 3 Penetration Max . | . . . . . . Secondary Targets 2 | . . . . 2 . Max Gunslinging Chain 1 | . . . . 1 . Shots Hit Robots 161 | . 28 . . 111 22 Core Hits 66 | . 14 . . 45 7 Critical Kills . | . . . . . . Critical Parts Destroyed . | . . . . . . Critical Strikes 9 | . . . . 8 1 Burn 5 | . . . . 5 . Sever 4 | . . . . 3 1 Melee Attacks 24 | . . . . 18 6 Impact . | . . . . . . Slashing 24 | . . . . 18 6 Piercing . | . . . . . . Sneak Attacks 1 | . . . . 1 . Combat Hostiles . | . . . . . . Follow-up Attacks . | . . . . . . Damage Inflicted 3315 | . 239 . . 2498 578 Guns 2547 | . 224 . . 1937 386 Cannons . | . . . . . . Explosions . | . . . . . . Melee 742 | . . . . 550 192 Ramming 26 | . 15 . . 11 . Kinetic 671 | . 224 . . 61 386 Thermal 1876 | . . . . 1876 . Explosive . | . . . . . . Electromagnetic . | . . . . . . Impact . | . . . . . . Slashing 742 | . . . . 550 192 Piercing . | . . . . . . Highest Corruption 3 | . . . . 3 3 Average Corruption 2 | . . . . 1 3 Corruption Purged . | . . . . . . Corruption Blocked . | . . . . . . Effects 19 | . . . . 14 5 Message Errors 5 | . . . . 3 2 Matter Fused 7 | . . . . 6 1 Energy Discharges 5 | . . . . 3 2 Data Loss (minor) 2 | . . . . 2 . Overload Shots . | . . . . . . Overflow Damage 26 | . . . . 26 . Projectiles . | . . . . . . Explosions . | . . . . . . Melee 26 | . . . . 26 . Knockbacks . | . . . . . . Impact . | . . . . . . Kinetic . | . . . . . . Secondary . | . . . . . . Self-Inflicted Damage . | . . . . . . Shots . | . . . . . . Rammed 6 | . 5 . . 1 . Targets Rammed 8 | . 6 . . 2 . Kicked 1 | . . . . 1 . Crushed 1 | . 1 . . . . Highest Temperature 315 | . 18 . . 315 38 Average Temperature 58 | . 8 . . 72 13 Received Heat Transfer 1692 | . 213 . . 1209 270 Siege Activations . | . . . . . . Martial Activations . | . . . . . . Shielding Activations . | . . . . . . Robots Disrupted . | . . . . . . Combat Hostiles . | . . . . . . Robots Corrupted . | . . . . . . Combat Hostiles . | . . . . . . Parts Fried . | . . . . . . Impact Corruptions . | . . . . . . Robots Melted 3 | . . . . 3 . Combat Hostiles 3 | . . . . 3 . Parts Melted 15 | . . . . 15 . Heat Transferred 4662 | . . . . 4662 . Parts Sabotaged . | . . . . . . Parts Stolen . | . . . . . . Parts Stripped . | . . . . . . Power Chain Reactions . | . . . . . . Alert | -11 -10 -10 -8 -6 -6 ------- Run | Yrd Mat Sub Scr Fac Ext Maximum Alert Level . | . . . . . . Low Security (%) 100 | 100 100 . . 100 100 Level 1 . | . . . . . . Level 2 . | . . . . . . Level 3 . | . . . . . . Level 4 . | . . . . . . Level 5 . | . . . . . . High Security . | . . . . . . Max Security . | . . . . . . Peak Influence 155 | . 55 . . 155 103 Initial 68 | . . . . . 68 Average 26 | . 13 . . 25 59 Influence Increases 759 | . 105 . . 524 130 Destroy 0b10 Robot/C 540 | . 80 . . 360 100 Destroy 0b10 Robot/NC 10 | . 5 . . . 5 Destroy Leader 110 | . 20 . . 80 10 Successful Hack 37 | . . . . 37 . Disable Machine 15 | . . . . 15 . Destroy Structure 2 | . . . . 2 . Lose Combat Pursuer 45 | . . . . 30 15 Influence Decreases 759 | . 60 32 13 384 270 Entered New Map 107 | . . 22 13 . 72 Time Decay 478 | . 60 10 . 308 100 Lost Part 174 | . . . . 76 98 Squads Dispatched 5 | . . . . 4 1 Investigation 1 | . . . . 1 . Extermination 2 | . . . . 2 . Reinforcement 2 | . . . . 1 1 Assault . | . . . . . . Garrison . | . . . . . . Intercept . | . . . . . . Searches Triggered . | . . . . . . Construction Impeded . | . . . . . . Haulers Reinforced . | . . . . . . Active Scanning Responses . | . . . . . . Cargo Convoy Interrupts . | . . . . . . Stealth | -11 -10 -10 -8 -6 -6 --------- Run | Yrd Mat Sub Scr Fac Ext Distress Signals 2 | . 1 . . . 1 Communications Jammed . | . . . . . . Distress Signals . | . . . . . . Times Spotted 48 | . 4 . . 33 11 Peak Tracking Total 6 | . 5 . . 6 4 Tactical Retreats 4 | . . . . 3 1 Traps | -11 -10 -10 -8 -6 -6 ------- Run | Yrd Mat Sub Scr Fac Ext Traps Triggered 3 | . . . . 3 . Indirectly . | . . . . . . Trap Hack Attempts . | . . . . . . Triggered . | . . . . . . Disarmed . | . . . . . . Reprogrammed . | . . . . . . Reused . | . . . . . . Traps Extracted . | . . . . . . Installed . | . . . . . . Triggered . | . . . . . . Machines | -11 -10 -10 -8 -6 -6 ---------- Run | Yrd Mat Sub Scr Fac Ext Machines Disabled 1 | . . . . 1 . Max in Single Turn 1 | . . . . 1 . Garrison Access 1 | . . . . 1 . Machines Repaired . | . . . . . . Machines Dismantled . | . . . . . . Machines Sabotaged . | . . . . . . Overloaded Fab Kills . | . . . . . . Hacking | -11 -10 -10 -8 -6 -6 --------- Run | Yrd Mat Sub Scr Fac Ext Machines Accessed 10 | . . . 5 5 . Terminals 2 | . . . . 2 . Fabricators . | . . . . . . Repair Stations 1 | . . . . 1 . Recycling Units 1 | . . . . 1 . Scanalyzers . | . . . . . . Garrison Access 1 | . . . . 1 . Total Hacks 53 | . . . 41 12 . Successful 47 | . . . 41 6 . Failed 6 | . . . . 6 . Catastrophic 3 | . . . . 3 . Database Lockouts . | . . . . . . Manual . | . . . . . . Terminals 5 | . . . . 5 . Fabricators . | . . . . . . Repair Stations 2 | . . . . 2 . Recycling Units 3 | . . . . 3 . Scanalyzers . | . . . . . . Garrison Access 2 | . . . . 2 . Terminal Hacks 43 | . . . 41 2 . Record 41 | . . . 41 . . Open Door 1 | . . . . 1 . Recall Extermination 1 | . . . . 1 . Fabricator Hacks . | . . . . . . Repair Station Hacks 1 | . . . . 1 . Scan Component 1 | . . . . 1 . Recycling Unit Hacks 2 | . . . . 2 . Report Inventory 1 | . . . . 1 . Retrieve Components 1 | . . . . 1 . Scanalyzer . | . . . . . . Garrison Access Hacks 1 | . . . . 1 . Seal Access 1 | . . . . 1 . Unauthorized Hacks . | . . . . . . Terminals . | . . . . . . Fabricators . | . . . . . . Repair Stations . | . . . . . . Recycling Units . | . . . . . . Scanalyzers . | . . . . . . Garrison Access . | . . . . . . Data Cores Recovered . | . . . . . . Used . | . . . . . . Hacking Detections 4 | . . . . 4 . Full Trace Events 1 | . . . . 1 . Feedback Events . | . . . . . . Feedback Blocked . | . . . . . . Robot Schematics Acquired . | . . . . . . Robots Built . | . . . . . . Authchips . | . . . . . . Time . | . . . . . . Total Robot Build Rating . | . . . . . . Part Schematics Acquired . | . . . . . . Parts Built . | . . . . . . Authchips . | . . . . . . Time . | . . . . . . Total Part Build Rating . | . . . . . . Parts Repaired . | . . . . . . Time . | . . . . . . Parts Recycled . | . . . . . . Recycled Matter . | . . . . . . Retrieved Matter . | . . . . . . Retrieved Components 8 | . . . . 8 . Parts Scanalyzed . | . . . . . . Part Schematics Acquired . | . . . . . . Parts Damaged . | . . . . . . Bothacking | -11 -10 -10 -8 -6 -6 ------------ Run | Yrd Mat Sub Scr Fac Ext Used RIF Installer . | . . . . . . Robots Hacked . | . . . . . . Non-combat . | . . . . . . Combat . | . . . . . . Robot Hacks Applied . | . . . . . . Relay Couplers Released . | . . . . . . Fabnet Peak Effective % . | . . . . . . Robots Rewired . | . . . . . . Allies Hacked . | . . . . . . Hacks Repelled . | . . . . . . Allies | -11 -10 -10 -8 -6 -6 -------- Run | Yrd Mat Sub Scr Fac Ext Total Allies . | . . . . . . Largest Group . | . . . . . . Highest-Rated Group . | . . . . . . Highest-Rated Ally . | . . . . . . Total Orders . | . . . . . . Ally Attacks . | . . . . . . Total Damage . | . . . . . . Kills . | . . . . . . Allies Corrupted . | . . . . . . Allies Melted . | . . . . . . Intel | -11 -10 -10 -8 -6 -6 ------- Run | Yrd Mat Sub Scr Fac Ext Active Infowar (turns) 2922 | . . . 1478 1242 202 Terrain 2867 | . . . 1478 1187 202 ECM 55 | . . . . 55 . Robot Analysis Total . | . . . . . . Derelict Logs Recovered . | . . . . . . Drone Launches . | . . . . . . Drone Recoveries . | . . . . . . Exploration | -11 -10 -10 -8 -6 -6 ------------- Run | Yrd Mat Sub Scr Fac Ext Turns Passed 4042 | 83 268 36 1487 1937 231 Spaces Moved 2423 | 50 117 20 913 1188 135 Core 32 | 27 . . . 5 . Treads 1073 | 23 117 20 913 . . Legs 718 | . . . . 587 131 Wheels 600 | . . . . 596 4 Hover . | . . . . . . Flight . | . . . . . . Fastest Speed 50 | 50 160 160 160 100 100 Average Speed 139 | 142 160 160 160 124 112 Slowest Speed 450 | 200 160 160 160 450 190 Overloaded Moves . | . . . . . . Propulsion Burnouts . | . . . . . . Robots Hopped . | . . . . . . Potential Cave-ins . | . . . . . . Cave-ins Triggered . | . . . . . . Exploration Rate (%) 18 | 4 18 2 50 18 20 Regions Visited 5 Branch Regions 3 Pre-discovered Areas . | . . . . . . Known Exits Taken . | . . . . . . Unknown Exits Taken 5 | 1 1 1 1 1 . Scrap Searched 2 | . . . 2 . . Spaces Dug . | . . . . . . Terrain Destroyed . | . . . . . . Melee . | . . . . . . Projectile . | . . . . . . AOE . | . . . . . . Terrain Rammed . | . . . . . . Walls Destroyed . | . . . . . . Machines Disabled . | . . . . . . Actions | -11 -10 -10 -8 -6 -6 --------- Run | Yrd Mat Sub Scr Fac Ext Total 2861 | 59 165 24 943 1487 183 Wait 127 | . 11 5 1 98 12 Move 2418 | 49 116 19 912 1187 135 Hop . | . . . . . . Pick Up 48 | 4 8 . 5 28 3 Fast Attach 29 | 6 3 . . 16 4 Attach 31 | . . . 2 25 4 Detach 11 | . 2 . 2 6 1 Swap 26 | . 1 . 10 15 . Drop 34 | . . . 11 19 4 Fire 106 | . 18 . . 73 15 Melee 23 | . . . . 18 5 Ram 1 | . . . . 1 . Kick 1 | . . . . 1 . Crush 6 | . 6 . . . . Escape Stasis . | . . . . . . Rewire . | . . . . . . Trap . | . . . . . . Miscellaneous . | . . . . . . Route ------- -11/Scrapyard -10/Materials -10/Subcaves -8/Scraptown -6/Factory -6/Extension History --------- Turn | Location | Event 3 | -11/Scrapyard | Discovered new exit (range 15) 84 | -11/Scrapyard | Entered Materials 205 | -10/Materials | Discovered new exit (range 9) 314 | -10/Materials | Build established: Mutant 352 | -10/Materials | Entered Subcaves 353 | -10/Subcaves | Approached by a straggling Scientist 377 | -10/Subcaves | Scientist uncovered a shortcut to Scraptown 388 | -10/Subcaves | Entered Scraptown 755 | -8/Scraptown | Heard Great Nut preacher, LISTEN AND RECITE! 1072 | -8/Scraptown | Discovered new exit (range 5) 1172 | -8/Scraptown | Visited Shadow of the Wyrm 1233 | -8/Scraptown | Visited Cyclists 1299 | -8/Scraptown | Visited UFD Registry 1299 | -8/Scraptown | Registered with UFD as "Laserrider" 1331 | -8/Scraptown | Entered Cyclist Reading Room 1401 | -8/Scraptown | Visited Symbiants 1449 | -8/Scraptown | Visited Awakened 1875 | -8/Scraptown | Entered Factory 1875 | -6/Factory | Evolved 8 slots: Power x1, Propulsion x2, Utility x5 2228 | -6/Factory | Core integrity fell below 50% 2245 | -6/Factory | Lost 13 parts (2p4n4u3w) 3482 | -6/Factory | Build established: Hacker-Mutant 3616 | -6/Factory | Discovered new exit (range 20) 3812 | -6/Factory | Entered Extension 3974 | -6/Extension | Core integrity fell below 20% 4007 | -6/Extension | Lost 3 parts (1n1u1w) 4043 | -6/Extension | Destroyed by Y-54 Guardian with Gatling Laser Last Messages --------------- 04007_ Dropped Imp. System Restoration Module. 04009_ Y-54 Guardian springs to life. 04009_ Lgt. Fission Core destroyed. 04009_ Y-54 Guardian springs to life. 04009_ Acquired Phasing Sabre. 04011_ Phase Shifter destroyed. 04012_ Y-54 Guardian destroyed. 04014_ Adv. Terrain Scanner destroyed. 04016_ Carbon-fiber Leg destroyed. 04016_ Y-54 Guardian Lgt. Treads severed. 04021_ Phasing Sabre destroyed. 04024_ Acquired Phasing Sabre. 04024_ Carbide Saw destroyed. 04024_ Phasing Sabre destroyed. 04027_ Mic. Nuclear Core destroyed. 04030_ Imp. VSS Leg destroyed. 04030_ Imp. System Shield destroyed. 04033_ Acquired Ripper. 04033_ Arm. Leg destroyed. 04038_ %0A#OUW>VYP>K/|SM 2AW%T&Y Map ----- +----------------------------------------------------+ | | | | | | | | | | | | | | | | | | | #?????#?#?###??###??#??##???#?#??????????????????? | | #?###?###??#?#####?#???#??#?###??????????????????? | | ####?#???#???#? ??????#????????????????????????? | | #######?#?#?#?? #?##???#??#??#????????????????? | | ? ######## ????? ?? ???????????? | | #?###?##?#?# ? ??????????????????????? | | #######???##? ? ????#???????????????? | | + ? ? ????###### ???#??#??????????????? | | # ? ?#####? ? Y !????#?#????#???????????? | | # #???? ?? ! ??? ??????????????????? | | + ??###? ?? ? ?#?#?????????????????? | | ###? ? ?#####? ? ? ??????#???????????????? | | ##? ????##?#? ? ?? ? ? ? ? ??? ? +?????????? | | #####?#################/####???????????? ????????? | | ?##?##?# ####?#?# YY[ #????#????#???????????? | | ########! ######## ! !l###???????????????????? | | = = T + ! b@ ##???##??????#????????? | | ########! ########[ !gl #???????#?????????????? | | ##?#?#?#= ###?##?# #?????#???#???????????? | | ###?#?#########?##??# ##???#????????????????? | | #?########?#?##?#??###########?##?#??????????????? | | ###?####?###??####??#??###????#????#?????????????? | | ?##????###?#?#??##??#??#####????###??????????????? | | #???#####?#?##?????#?#??#??#???????#?????????????? | | ???###?##?#?????#??#?###??#??????????????????????? | | #?###???##?##?##?##?###?#???#?#??????????????????? | | ??##?####????#?#????######???????#???????????????? | | ?????##???###???####??#?#?????#????##????????????? | | #?#??#??##?#?##??##??###??#?##???????????????????? | | ?#?#?####?#??#?#?#?#?##?#??#?????????????????????? | | ##?#?#?#?##?###?##?##?????#?##???????????????????? | | ##?###??#?##?#?####??????#?#????#??#?????????????? | | ??#?###?#??######?##?#???????????????????????????? | | #??##???#####?##??##?????#???????????????????????? | | ###?##???#######??????#??????????????????????????? | | ?????#?#?#?????###???????#???????????????????????? | | ?????#?#???#?#???????????????????????????????????? | | ???????? ????????????????????????????????????????? | | ?????????????????????????????????????????????????? | | ?????????????????????????????????????????????????? | | ?????????????????????????????????????????????????? | +----------------------------------------------------+ Best States ------------- Heat Dissipation 70 Energy Generation 36 Energy Capacity 360 Matter Stores 300 Matter Capacity 300 Sight Range 16 Terrain Scan Range 20 Terrain Scan Density 110 ECM Strength 2 Power Amplification 20 Armor Coverage 225 Phase Shifting 5 Evasion (%) 60 Melee Accuracy 8 Recoil Reduction 2 Kinecelleration 30 Offensive Hacking 10 Defensive Hacking 12 Item Schematics ----------------- None Robot Schematics ------------------ None Fabricated ------------ Nothing Repaired ---------- Nothing Alien Tech Used ----------------- None Achievements -------------- None Challenges ------------ None Game ------ Seed WeldingAdvancedGun Manual? 0 Play Time 00:46:40 Cumulative 20.5 hours Start 2025.07.25 @ 04:24:15 End 2025.07.25 @ 05:12:36 Sessions 1 Manual Loads 0 Difficulty Rogue Special Mode None Game No. 46 Rogue 46 Adventurer 0 Explorer 0 Win Type - Total 0 Types 0/0/0/0/0/0/0/0/0/0 Lore% 15 Gallery% 21 Achievement% 17 Wizard Run 0 Options --------- Layout 1 ASCII 0 Keyboard 1 Movement Numpad Keybinds 0 Fullscreen 2 Font 24/Smallcaps Map View 50x35 Zoom Use 0% Tactical HUD 1 Map Filters NONE Filters NONE Steam 1 RUN: c6077c09-12aa-49f2-b7ba-d9594ff4ef53